Workbook

Sheet BSAI Gfish Harvest Specs Table
A1: Table 1. BSAI Plan Team recommended proposed OFL, ABC Groundfish in the Bering Sea and Aleutian Islands (metric tons) for 2025-2026
C3: 2023 | F3: Catch as of | G3: 2024 | J3: Catch as of | K3: 2025 | M3: 2026
A4: Species | B4: Area | C4: OFL | D4: ABC | E4: TAC | F4: 2023-12-31 | G4: OFL | H4: ABC | I4: TAC | J4: 2024-11-11 | K4: OFL | L4: ABC | M4: OFL | N4: ABC
A5: Pollock | B5: BS | C5: 3,381,000 | D5: 1,910,000 | E5: =1300000+14500 -> 1,314,500 | F5: 1,310,591 | G5: 3,162,000 | H5: 2,313,000 | I5: =1300000+13580 -> 1,313,580 | J5: 1,298,531 | K5: 2,957,000 | L5: 2,417,000 | M5: 2,496,000 | N5: 2,036,000
B6: AI | C6: 52,383 | D6: 43,413 | E6: =19000-14500 -> 4,500 | F6: 3,744 | G6: 51,516 | H6: 42,654 | I6: =19000-13580 -> 5,420 | J6: 4,878 | K6: 55,728 | L6: 46,051 | M6: 56,231 | N6: 46,437
B7: Bogoslof | C7: 115,146 | D7: 86,360 | E7: 300 | F7: 125 | G7: 115,146 | H7: 86,360 | I7: 250 | J7: 23 | K7: 77,354 | L7: 58,015 | M7: 77,354 | N7: 58,015
A8: Pacific cod | B8: BS | C8: 172,495 | D8: 144,834 | E8: 127,409 | F8: 126,458 | G8: 200,995 | H8: 167,952 | I8: 147,753 | J8: 116,791 | K8: 183,509 | L8: 153,617 | M8: 169,243 | N8: 141,520
B9: AI | C9: 18,416 | D9: 13,812 | E9: 8,425 | F9: 3,398 | G9: 18,416 | H9: 12,431 | I9: 8,080 | J9: 3,827 | K9: 16,782 | L9: 13,376 | M9: 16,273 | N9: 12,973
B10: BSAI/GOA | C10: 47,390 | D10: 40,502 | E10: n/a | G10: 55,084 | H10: 47,146 | I10: n/a | K10: 58,532 | L10: 50,111 | M10: 57,797 | N10: 49,482
A11: Sablefish | B11: BS | C11: n/a | D11: 8,417 | E11: 7,996 | F11: 5,418 | G11: n/a | H11: 11,450 | I11: 7,996 | J11: 5,326 | K11: n/a | L11: 13,898 | M11: n/a | N11: 13,723
B12: AI | C12: n/a | D12: 8,884 | E12: 8,440 | F12: 2,463 | G12: n/a | H12: 13,100 | I12: 8,440 | J12: 1,152 | K12: n/a | L12: 12,175 | M12: n/a | N12: 12,022
A13: Yellowfin sole | B13: BSAI | C13: 404,882 | D13: 378,499 | E13: 230,000 | F13: 112,889 | G13: 305,298 | H13: 265,913 | I13: 195,000 | J13: 81,307 | K13: 299,247 | L13: 262,557 | M13: 305,039 | N13: 267,639
A14: Greenland turbot | B14: BSAI | C14: 4,645 | D14: 3,960 | E14: 3,960 | F14: =SUM(F15:F16) -> 1,276 | G14: 3,705 | H14: 3,188 | I14: 3,188 | J14: 769 | K14: 2,598 | L14: 2,013 | M14: 2,059 | N14: 1,594
B15: BS | C15: n/a | D15: 3,338 | E15: 3,338 | F15: 795 | G15: n/a | H15: 2,687 | I15: 2,687 | J15: 464 | K15: n/a | L15: 1,697 | M15: n/a | N15: 1,344
B16: AI | C16: n/a | D16: 622 | E16: 622 | F16: 481 | G16: n/a | H16: 501 | I16: 501 | J16: 305 | K16: n/a | L16: 316 | M16: n/a | N16: 250
A17: Arrowtooth flounder | B17: BSAI | C17: 98,787 | D17: 83,852 | E17: 15,000 | F17: 7,276 | G17: 103,280 | H17: 87,690 | I17: 14,000 | J17: 9,915 | K17: 104,428 | L17: 88,683 | M17: 102,472 | N17: 87,035
A18: Kamchatka flounder | B18: BSAI | C18: 8,946 | D18: 7,579 | E18: 7,579 | F18: 6,949 | G18: 8,850 | H18: 7,498 | I18: 7,498 | J18: 4,913 | K18: 8,019 | L18: 6,800 | M18: 7,790 | N18: 6,606
A19: Northern rock sole | B19: BSAI | C19: 166,034 | D19: 121,719 | E19: 66,000 | F19: 27,212 | G19: 197,828 | H19: 122,091 | I19: 66,000 | J19: 29,137 | K19: 165,444 | L19: 157,487 | M19: 166,220 | N19: 158,225
A20: Flathead sole | B20: BSAI | C20: 79,256 | D20: 65,344 | E20: 35,500 | F20: 8,991 | G20: 81,605 | H20: 67,289 | I20: 35,500 | J20: 12,017 | K20: 101,621 | L20: 83,807 | M20: 106,283 | N20: 87,700
A21: Alaska plaice | B21: BSAI | C21: 40,823 | D21: 33,946 | E21: 17,500 | F21: 15,252 | G21: 42,695 | H21: 35,494 | I21: 21,752 | J21: 10,091 | K21: 34,576 | L21: 28,745 | M21: 33,965 | N21: 28,230
A22: Other flatfish | B22: BSAI | C22: 22,919 | D22: 17,189 | E22: 4,500 | F22: 3,020 | G22: 22,919 | H22: 17,189 | I22: 4,500 | J22: 3,071 | K22: 26,083 | L22: 19,562 | M22: 26,083 | N22: 19,562
A23: Pacific Ocean perch | B23: BSAI | C23: 50,133 | D23: 42,038 | E23: 37,703 | F23: =SUM(F24:F27) -> 35,951 | G23: 49,010 | H23: 41,096 | I23: 37,626 | J23: 34,894 | K23: 44,594 | L23: 37,375 | M23: 43,084 | N23: 36,578
B24: BS | C24: n/a | D24: 11,903 | E24: 11,903 | F24: 10,892 | G24: n/a | H24: 11,636 | I24: 11,636 | J24: 9,742 | K24: n/a | L24: 10,121 | M24: n/a | N24: 9,905
B25: EAI | C25: n/a | D25: 8,152 | E25: 8,152 | F25: 7,791 | G25: n/a | H25: 7,969 | I25: 7,969 | J25: 7,594 | K25: n/a | L25: 6,278 | M25: n/a | N25: 6,144
B26: CAI | C26: n/a | D26: 5,648 | E26: 5,648 | F26: 5,461 | G26: n/a | H26: 5,521 | I26: 5,521 | J26: 5,250 | K26: n/a | L26: 5,559 | M26: n/a | N26: 5,441
B27: WAI | C27: n/a | D27: 16,335 | E27: 12,000 | F27: 11,807 | G27: n/a | H27: 15,970 | I27: 12,500 | J27: 12,308 | K27: n/a | L27: 15,417 | M27: n/a | N27: 16,058
A28: Northern rockfish | B28: BSAI | C28: 22,776 | D28: 18,687 | E28: 11,000 | F28: 10,433 | G28: 23,556 | H28: 19,274 | I28: 16,752 | J28: 8,775 | K28: 22,848 | L28: 18,694 | M28: 22,284 | N28: 18,232
A29: Blackspotted/Rougheye Rockfish | B29: BSAI | C29: 703 | D29: 525 | E29: 525 | F29: =SUM(F30:F31) -> 607 | G29: 761 | H29: 569 | I29: 569 | J29: 616 | K29: 838 | L29: 706 | M29: 902 | N29: 766
B30: BS/EAI | C30: n/a | D30: 359 | E30: 359 | F30: 291 | G30: n/a | H30: 388 | I30: 388 | J30: 177 | K30: n/a | L30: 408 | M30: n/a | N30: 441
B31: CAI/WAI | C31: n/a | D31: 166 | E31: 166 | F31: 316 | G31: n/a | H31: 181 | I31: 181 | J31: 439 | K31: n/a | L31: 298 | M31: n/a | N31: 325
A32: Shortraker rockfish | B32: BSAI | C32: 706 | D32: 530 | E32: 530 | F32: 243 | G32: 706 | H32: 530 | I32: 530 | J32: 149 | K32: 631 | L32: 473 | M32: 631 | N32: 473
A33: Other rockfish | B33: BSAI | C33: 1,680 | D33: 1,260 | E33: 1,260 | F33: =SUM(F34:F35) -> 1,220 | G33: 1,680 | H33: 1,260 | I33: 1,260 | J33: 1,337 | K33: 1,406 | L33: 1,054 | M33: 1,406 | N33: 1,054
B34: BS | C34: n/a | D34: 880 | E34: 880 | F34: 652 | G34: n/a | H34: 880 | I34: 880 | J34: 770 | K34: n/a | L34: 639 | M34: n/a | N34: 639
B35: AI | C35: n/a | D35: 380 | E35: 380 | F35: 568 | G35: n/a | H35: 380 | I35: 380 | J35: 568 | K35: n/a | L35: 415 | M35: n/a | N35: 415
A36: Atka mackerel | B36: BSAI | C36: 118,787 | D36: 98,588 | E36: 69,282 | F36: =SUM(F37:F39) -> 66,613 | G36: 111,684 | H36: 95,358 | I36: 72,987 | J36: 71,937 | K36: 122,622 | L36: 103,247 | M36: 107,889 | N36: 92,361
B37: BS/EAI | C37: n/a | D37: 43,281 | E37: 27,260 | F37: 24,862 | G37: n/a | H37: 41,723 | I37: 32,260 | J37: 31,530 | K37: n/a | L37: 46,650 | M37: n/a | N37: 41,731
B38: CAI | C38: n/a | D38: 17,351 | E38: 17,351 | F38: 17,210 | G38: n/a | H38: 16,754 | I38: 16,754 | J38: 16,616 | K38: n/a | L38: 26,511 | M38: n/a | N38: 23,716
B39: WAI | C39: n/a | D39: 37,956 | E39: 24,671 | F39: 24,541 | G39: n/a | H39: 36,882 | I39: 23,973 | J39: 23,791 | K39: n/a | L39: 30,087 | M39: n/a | N39: 26,914
A40: Skates | B40: BSAI | C40: 46,220 | D40: 38,605 | E40: 27,441 | F40: 25,866 | G40: 45,574 | H40: 37,808 | I40: 30,519 | J40: 24,934 | K40: 44,086 | L40: 36,523 | M40: 43,285 | N40: 35,833
A41: Sharks | B41: BSAI | C41: 689 | D41: 450 | E41: 333 | F41: 325 | G41: 689 | H41: 450 | I41: 400 | J41: 173 | K41: 689 | L41: 450 | M41: 689 | N41: 450
A42: Octopuses | B42: BSAI | C42: 4,769 | D42: 3,576 | E42: 400 | F42: 148 | G42: 6,080 | H42: 4,560 | I42: 400 | J42: 240 | K42: 6,080 | L42: 4,560 | M42: 6,080 | N42: 4,560
A43: Total | B43: BSAI | C43: =SUM(C5:C42) -> 4,859,585 | D43: =SUM(D5:D42)-D14-D23-D29-D33-D36-D10 -> 3,132,067 | E43: =SUM(E5:E42)-E14-E23-E29-E33-E36 -> 2,000,083 | F43: =SUM(F5:F42)-F14-F23-F29-F33-F36-F10 -> 1,776,469 | G43: =SUM(G5:G42) -> 4,609,077 | H43: =SUM(H5:H42)-H14-H23-H29-H33-H36-H11-H12 -> 3,476,801 | I43: =SUM(I5:I42)-I14-I23-I29-I33-I36 -> 2,000,000 | J43: =SUM(J5:J42)-J14-J23-J29-J33-J36-J10 -> 1,724,804 | K43: =SUM(K5:K42) -> 4,334,715 | L43: =SUM(L5:L42)-L14-L23-L29-L33-L36-L11-L12 -> 3,590,907 | M43: =SUM(M5:M42) -> 3,849,059 | N43: =SUM(N5:N42)-N14-N23-N29-N33-N36-N11-N12 -> 3,192,295
A44: Sources: 2024 OFLs, ABCs, and TACs are from harvest specifications adopted by the Council in December 2023 , 2024 catches through 11/11/2024, from AKR Catch Accounting.
A46: Reallocations over specified TAC
A47: 2024 | B47: From | C47: To | E47: Reason
A48: AI Pollock | B48: 13,580 | E48: Reallocate AI to BS
A49: BS Pollock | C49: 14,500
C50: 333 | E50: Release from non-specified reserves
C52: To | E52: Reason
E53: Reallocate AI to BS
C54: 13,580

Sheet Notes
A6: Input to facilitate Plan Team discussions of appropriate proposed OFLs and ABCs at September plan team meetings.
A7: Spreadsheets for the BSAI and GOA with information on 2019 and 2020 OFLs, ABCs and TACs as adopted by published in the Federal Register in February 2018 and March 2019.
A8: To be completed in September with actual catches through December 31, 2019 and September 8, 2020 as published by SF to web site.
A12: Comments: Mary Furuness, 907-586-7447, Mary.Furuness@noaa.gov
